[Event "*** Titled Tuesday Blitz"]
[Site "Chess.com"]
[Date "2021.02.02"]
[Round "6"]
[White "Fortitudine"]
[Black "zeitnot2006"]
[Result "0-1"]
[WhiteElo "2353"]
[BlackElo "2548"]
[TimeControl "180+1"]
[EndTime "11:09:54 PST"]
[Termination "zeitnot2006 won by resignation"]

1. c4 {[%clk 0:03:00.9]} 1... b6 {[%clk 0:02:57.4]} 2. e4 {[%clk 0:02:58.7]}
2... Bb7 {[%clk 0:02:53.5]} 3. Nc3 {[%clk 0:02:58.7]} 3... c5 {[%clk 0:02:52.4]}
4. d3 {[%clk 0:02:57.4]} 4... g6 {[%clk 0:02:52.4]} 5. g3 {[%clk 0:02:56.7]}
5... h5 {[%clk 0:02:51.4]} 6. h4 {[%clk 0:02:55.9]} 6... Bg7 {[%clk 0:02:50.3]}
7. Nge2 {[%clk 0:02:54.8]} 7... d6 {[%clk 0:02:48.7]} 8. Be3 {[%clk 0:02:49.4]}
8... Nc6 {[%clk 0:02:47.5]} 9. d4 {[%clk 0:02:41.9]} 9... Nf6 {[%clk 0:02:38.9]}
10. f3 {[%clk 0:02:26.1]} 10... cxd4 {[%clk 0:02:35.3]} 11. Nxd4 {[%clk
0:02:27]} 11... Nxd4 {[%clk 0:02:30.7]} 12. Bxd4 {[%clk 0:02:27.9]} 12... Rc8
{[%clk 0:02:27.9]} 13. Rc1 {[%clk 0:02:21.7]} 13... e5 {[%clk 0:01:51.7]} 14.
Be3 {[%clk 0:02:13.5]} 14... a6 {[%clk 0:01:32.4]} 15. Qd2 {[%clk 0:02:08.4]}
15... Qc7 {[%clk 0:01:17]} 16. b3 {[%clk 0:02:01.6]} 16... O-O {[%clk
0:01:07.5]} 17. Bh3 {[%clk 0:01:59.9]} 17... Rcd8 {[%clk 0:01:02]} 18. Nd5
{[%clk 0:01:46.7]} 18... Bxd5 {[%clk 0:00:42.8]} 19. cxd5 {[%clk 0:01:47.6]}
19... Qb7 {[%clk 0:00:42.5]} 20. Rc6 {[%clk 0:01:40.4]} 20... b5 {[%clk
0:00:34.6]} 21. O-O {[%clk 0:01:36.7]} 21... Ne8 {[%clk 0:00:13.8]} 22. Rfc1
{[%clk 0:01:29.4]} 22... f5 {[%clk 0:00:13]} 23. Bg5 {[%clk 0:01:18.6]} 23...
Ra8 {[%clk 0:00:12.4]} 24. Kg2 {[%clk 0:01:03.9]} 24... Kh7 {[%clk 0:00:10.7]}
25. R1c2 {[%clk 0:00:55]} 25... fxe4 {[%clk 0:00:07.6]} 26. fxe4 {[%clk
0:00:55.9]} 26... Qf7 {[%clk 0:00:07.7]} 27. Qe3 {[%clk 0:00:52.8]} 27... Qf1+
{[%clk 0:00:05.7]} 28. Kh2 {[%clk 0:00:51.8]} 28... Qd1 {[%clk 0:00:04.7]} 29.
Rf2 {[%clk 0:00:50]} 29... Rxf2+ {[%clk 0:00:03.9]} 30. Qxf2 {[%clk 0:00:50.9]}
30... Kg8 {[%clk 0:00:02.4]} 31. Be6+ {[%clk 0:00:50.1]} 31... Kh7 {[%clk
0:00:02.4]} 32. Rc8 {[%clk 0:00:48.6]} 32... Rxc8 {[%clk 0:00:02.1]} 33. Bxc8
{[%clk 0:00:49.5]} 33... Qb1 {[%clk 0:00:01.7]} 34. Qe2 {[%clk 0:00:47.9]} 34...
Qa1 {[%clk 0:00:01.2]} 35. Bxa6 {[%clk 0:00:46.4]} 35... Nc7 {[%clk 0:00:02]}
36. Bc8 {[%clk 0:00:45.6]} 36... b4 {[%clk 0:00:02.5]} 37. Be6 {[%clk
0:00:45.1]} 37... Qd4 {[%clk 0:00:02.7]} 38. Bd8 {[%clk 0:00:44.2]} 38... Ne8
{[%clk 0:00:02.4]} 39. Bf7 {[%clk 0:00:44]} 39... Nf6 {[%clk 0:00:02.5]} 40.
Bxf6 {[%clk 0:00:43.3]} 40... Bxf6 {[%clk 0:00:03.4]} 41. Be6 {[%clk 0:00:43.4]}
41... Kg7 {[%clk 0:00:03.9]} 42. Qf3 {[%clk 0:00:43.5]} 42... Qb2+ {[%clk
0:00:02.7]} 43. Qg2 {[%clk 0:00:43.9]} 43... Qd4 {[%clk 0:00:02.9]} 44. Qc2
{[%clk 0:00:44]} 44... Be7 {[%clk 0:00:02.9]} 45. Bh3 {[%clk 0:00:44]} 45... Kh7
{[%clk 0:00:02.4]} 46. Qe2 {[%clk 0:00:43.6]} 46... Kg7 {[%clk 0:00:02.6]} 47.
Bg2 {[%clk 0:00:43.7]} 47... Bd8 {[%clk 0:00:02.9]} 48. Kh3 {[%clk 0:00:44.1]}
48... Bb6 {[%clk 0:00:03.2]} 49. Qb5 {[%clk 0:00:42.8]} 49... Bc5 {[%clk
0:00:01.8]} 50. Qd7+ {[%clk 0:00:43]} 50... Kh6 {[%clk 0:00:02.5]} 51. Qf7
{[%clk 0:00:43]} 51... Qg1 {[%clk 0:00:01.6]} 52. Qf8+ {[%clk 0:00:42.5]} 52...
Kh7 {[%clk 0:00:01.7]} 53. Qf7+ {[%clk 0:00:43.2]} 53... Kh6 {[%clk 0:00:02]}
54. Qf6 {[%clk 0:00:41.8]} 54... Kh7 {[%clk 0:00:02.3]} 55. Qe7+ {[%clk
0:00:39.6]} 55... Kh6 {[%clk 0:00:02.5]} 56. Qg5+ {[%clk 0:00:40.5]} 56... Kh7
{[%clk 0:00:03.1]} 57. g4 {[%clk 0:00:38.5]} 57... hxg4+ {[%clk 0:00:03.1]} 58.
Qxg4 {[%clk 0:00:38.7]} 58... Qf2 {[%clk 0:00:03.7]} 59. Qd7+ {[%clk 0:00:38.9]}
59... Kh6 {[%clk 0:00:04.1]} 60. Qg4 {[%clk 0:00:38.9]} 60... Qe3+ {[%clk
0:00:04.3]} 61. Qf3 {[%clk 0:00:38.6]} 61... Qd2 {[%clk 0:00:04.5]} 62. Qg3
{[%clk 0:00:36.7]} 62... Qxa2 {[%clk 0:00:04]} 63. Qg5+ {[%clk 0:00:36.9]} 63...
Kh7 {[%clk 0:00:04.7]} 64. Qe7+ {[%clk 0:00:36.7]} 64... Kh6 {[%clk 0:00:05]}
65. Qg5+ {[%clk 0:00:37.3]} 65... Kh7 {[%clk 0:00:04.8]} 66. h5 {[%clk
0:00:36.9]} 66... gxh5 {[%clk 0:00:05]} 67. Qxh5+ {[%clk 0:00:37.8]} 67... Kg7
{[%clk 0:00:05.7]} 68. Qg5+ {[%clk 0:00:37.8]} 68... Kf7 {[%clk 0:00:05.6]} 69.
Kh4 {[%clk 0:00:34.8]} 69... Qxb3 {[%clk 0:00:05.1]} 70. Bf3 {[%clk 0:00:34.9]}
70... Qxf3 {[%clk 0:00:05.1]} 71. Qd8 {[%clk 0:00:32.6]} 71... Qxe4+ {[%clk
0:00:04.7]} 72. Kh5 {[%clk 0:00:32.8]} 72... Qf5+ {[%clk 0:00:04.8]} 73. Kh4
{[%clk 0:00:31.9]} 73... Qf6+ {[%clk 0:00:05.3]} 74. Qxf6+ {[%clk 0:00:30.8]}
74... Kxf6 {[%clk 0:00:06.2]} 0-1

[Event "*** Titled Tuesday Blitz"]
[Site "Chess.com"]
[Date "2021.02.02"]
[Round "6"]
[White "woodhy"]
[Black "davigator"]
[Result "0-1"]
[WhiteElo "2455"]
[BlackElo "2329"]
[TimeControl "180+1"]
[EndTime "11:09:54 PST"]
[Termination "davigator won on time"]

1. e4 {[%clk 0:03:00.9]} 1... c5 {[%clk 0:02:58.9]} 2. Nf3 {[%clk 0:02:57.3]}
2... Nc6 {[%clk 0:02:57.6]} 3. d4 {[%clk 0:02:57.5]} 3... cxd4 {[%clk 0:02:57]}
4. Nxd4 {[%clk 0:02:58.4]} 4... Nf6 {[%clk 0:02:57]} 5. Nc3 {[%clk 0:02:52]}
5... d6 {[%clk 0:02:56]} 6. Bg5 {[%clk 0:02:44.1]} 6... a6 {[%clk 0:02:54.3]} 7.
Qd2 {[%clk 0:02:34.4]} 7... e6 {[%clk 0:02:52.9]} 8. Be2 {[%clk 0:02:30.4]} 8...
Bd7 {[%clk 0:02:52.5]} 9. O-O {[%clk 0:02:30]} 9... Be7 {[%clk 0:02:51.7]} 10.
Rad1 {[%clk 0:02:28.7]} 10... O-O {[%clk 0:02:50.1]} 11. f4 {[%clk 0:02:29]}
11... Qc7 {[%clk 0:02:46.7]} 12. Kh1 {[%clk 0:02:27.6]} 12... Rad8 {[%clk
0:02:28.4]} 13. f5 {[%clk 0:02:22.2]} 13... Nxd4 {[%clk 0:02:21.4]} 14. Qxd4
{[%clk 0:02:19.9]} 14... e5 {[%clk 0:02:21.3]} 15. Qe3 {[%clk 0:02:16.2]} 15...
Bc6 {[%clk 0:02:20.8]} 16. Bxf6 {[%clk 0:02:06.9]} 16... Bxf6 {[%clk 0:02:19.4]}
17. Bc4 {[%clk 0:02:07.4]} 17... b5 {[%clk 0:02:18.2]} 18. Bd5 {[%clk
0:02:06.7]} 18... b4 {[%clk 0:01:53.5]} 19. Ne2 {[%clk 0:01:36]} 19... Bxd5
{[%clk 0:01:52.7]} 20. Rxd5 {[%clk 0:01:36.9]} 20... Qxc2 {[%clk 0:01:50.3]} 21.
Rd2 {[%clk 0:01:36.8]} 21... Qc5 {[%clk 0:01:48.4]} 22. Qf3 {[%clk 0:01:35]}
22... a5 {[%clk 0:01:44.6]} 23. Rfd1 {[%clk 0:01:20.7]} 23... Bg5 {[%clk
0:01:41.7]} 24. Rd3 {[%clk 0:01:15.1]} 24... Qc2 {[%clk 0:01:37.6]} 25. f6
{[%clk 0:00:58]} 25... Bxf6 {[%clk 0:01:31]} 26. R3d2 {[%clk 0:00:57.2]} 26...
Qc4 {[%clk 0:01:02.2]} 27. Ng3 {[%clk 0:00:57]} 27... Bg5 {[%clk 0:00:55.8]} 28.
Rd5 {[%clk 0:00:41.4]} 28... Qxa2 {[%clk 0:00:45.7]} 29. b3 {[%clk 0:00:39.2]}
29... Qc2 {[%clk 0:00:43.5]} 30. Nf5 {[%clk 0:00:37.6]} 30... g6 {[%clk
0:00:42.6]} 31. Nxd6 {[%clk 0:00:34.1]} 31... Be7 {[%clk 0:00:38.7]} 32. Nc4
{[%clk 0:00:17.1]} 32... Rxd5 {[%clk 0:00:37.6]} 33. exd5 {[%clk 0:00:17.2]}
33... f5 {[%clk 0:00:34.8]} 34. d6 {[%clk 0:00:16.5]} 34... e4 {[%clk
0:00:32.5]} 35. Qf1 {[%clk 0:00:15.4]} 35... Bf6 {[%clk 0:00:31.5]} 36. Nxa5
{[%clk 0:00:13.9]} 36... e3 {[%clk 0:00:26]} 37. Qe1 {[%clk 0:00:11.2]} 37... e2
{[%clk 0:00:25.4]} 38. Rd2 {[%clk 0:00:11.1]} 38... Qc5 {[%clk 0:00:24.6]} 39.
Nc4 {[%clk 0:00:08.5]} 39... Bc3 {[%clk 0:00:22.8]} 40. Qxe2 {[%clk 0:00:08.7]}
40... Bxd2 {[%clk 0:00:22.8]} 41. Qxd2 {[%clk 0:00:09.1]} 41... Re8 {[%clk
0:00:20.6]} 42. d7 {[%clk 0:00:08.5]} 42... Rd8 {[%clk 0:00:20.9]} 43. h3 {[%clk
0:00:08.4]} 43... Qe7 {[%clk 0:00:20.3]} 44. Qd5+ {[%clk 0:00:08]} 44... Kg7
{[%clk 0:00:19.4]} 45. Ne5 {[%clk 0:00:08.9]} 45... Kh6 {[%clk 0:00:18.3]} 46.
Qd2+ {[%clk 0:00:08.5]} 46... Kg7 {[%clk 0:00:17.8]} 47. Qd4 {[%clk 0:00:08.7]}
47... Qf6 {[%clk 0:00:17.8]} 48. Qd5 {[%clk 0:00:07.7]} 48... h5 {[%clk
0:00:17.3]} 49. Nc6 {[%clk 0:00:08]} 49... Rxd7 {[%clk 0:00:12.9]} 50. Qxd7+
{[%clk 0:00:07.7]} 50... Kh6 {[%clk 0:00:13.8]} 51. Qd4 {[%clk 0:00:07.8]} 51...
Qe6 {[%clk 0:00:12.7]} 52. Ne5 {[%clk 0:00:07.5]} 52... Qxb3 {[%clk 0:00:10.5]}
53. Qf4+ {[%clk 0:00:06]} 53... Kg7 {[%clk 0:00:10]} 54. Kh2 {[%clk 0:00:05.9]}
54... Qc3 {[%clk 0:00:08.8]} 55. Qg3 {[%clk 0:00:03.9]} 55... Kf6 {[%clk
0:00:07.2]} 56. Qxg6+ {[%clk 0:00:02.9]} 56... Kxe5 {[%clk 0:00:07.5]} 57. Qg7+
{[%clk 0:00:03.2]} 57... Ke4 {[%clk 0:00:08.1]} 58. Qe7+ {[%clk 0:00:02.5]}
58... Qe5+ {[%clk 0:00:06.9]} 59. Qxe5+ {[%clk 0:00:01.1]} 59... Kxe5 {[%clk
0:00:07.6]} 60. g4 {[%clk 0:00:02]} 60... b3 {[%clk 0:00:08.1]} 61. gxh5 {[%clk
0:00:01.7]} 61... Kf6 {[%clk 0:00:08.4]} 62. h6 {[%clk 0:00:02.6]} 62... Kg6
{[%clk 0:00:08.6]} 63. h7 {[%clk 0:00:03.5]} 63... Kxh7 {[%clk 0:00:08.9]} 0-1

[Event "*** Titled Tuesday Blitz"]
[Site "Chess.com"]
[Date "2021.02.02"]
[Round "6"]
[White "ChessFighter1975"]
[Black "CheckThis4"]
[Result "1-0"]
[WhiteElo "2433"]
[BlackElo "2566"]
[TimeControl "180+1"]
[EndTime "11:09:57 PST"]
[Termination "ChessFighter1975 won on time"]

1. d4 {[%clk 0:03:00.9]} 1... Nf6 {[%clk 0:02:58.4]} 2. c4 {[%clk 0:03:01.8]}
2... e5 {[%clk 0:02:58.4]} 3. dxe5 {[%clk 0:03:01.6]} 3... Ng4 {[%clk
0:02:58.5]} 4. Nh3 {[%clk 0:03:00.8]} 4... Nxe5 {[%clk 0:02:50.8]} 5. Nc3 {[%clk
0:03:01.1]} 5... Nxc4 {[%clk 0:02:38.4]} 6. e4 {[%clk 0:02:59]} 6... d5 {[%clk
0:02:28.9]} 7. Nxd5 {[%clk 0:02:51.1]} 7... Ne5 {[%clk 0:02:09.4]} 8. Nhf4
{[%clk 0:02:27.6]} 8... c6 {[%clk 0:02:02.6]} 9. Nc3 {[%clk 0:02:27.9]} 9...
Qxd1+ {[%clk 0:02:01.4]} 10. Nxd1 {[%clk 0:02:28.8]} 10... Bb4+ {[%clk
0:01:56.9]} 11. Nc3 {[%clk 0:02:24.9]} 11... Nbd7 {[%clk 0:01:56.5]} 12. Bd2
{[%clk 0:02:17.5]} 12... Nc5 {[%clk 0:01:54.6]} 13. a3 {[%clk 0:02:17.9]} 13...
Nb3 {[%clk 0:01:44.9]} 14. Rd1 {[%clk 0:02:04.1]} 14... Ba5 {[%clk 0:01:36.9]}
15. Be3 {[%clk 0:01:23.3]} 15... Bg4 {[%clk 0:01:34.8]} 16. f3 {[%clk 0:01:21]}
16... Nxf3+ {[%clk 0:01:20]} 17. gxf3 {[%clk 0:01:20.6]} 17... Bxf3 {[%clk
0:01:20.6]} 18. Rg1 {[%clk 0:01:19.6]} 18... Bxd1 {[%clk 0:01:19.3]} 19. Kxd1
{[%clk 0:01:20.5]} 19... O-O-O+ {[%clk 0:01:09.4]} 20. Kc2 {[%clk 0:01:19.8]}
20... Nd4+ {[%clk 0:01:05.3]} 21. Bxd4 {[%clk 0:01:19.5]} 21... Rxd4 {[%clk
0:01:05.8]} 22. Rxg7 {[%clk 0:01:10.1]} 22... Rhd8 {[%clk 0:00:58.7]} 23. Rxf7
{[%clk 0:01:00.4]} 23... Rd2+ {[%clk 0:00:56]} 24. Kb3 {[%clk 0:00:59.9]} 24...
Rxh2 {[%clk 0:00:47.5]} 25. Bh3+ {[%clk 0:00:34.8]} 25... Kb8 {[%clk 0:00:46.9]}
26. Rxh7 {[%clk 0:00:35.2]} 26... Rdd2 {[%clk 0:00:26.6]} 27. Rh8+ {[%clk
0:00:34.3]} 27... Kc7 {[%clk 0:00:21.3]} 28. Ne6+ {[%clk 0:00:34.7]} 28... Kd6
{[%clk 0:00:19.2]} 29. e5+ {[%clk 0:00:30.8]} 29... Kxe5 {[%clk 0:00:17.9]} 30.
Rh5+ {[%clk 0:00:30.7]} 30... Kf6 {[%clk 0:00:17.4]} 31. Ne4+ {[%clk 0:00:30]}
31... Kg6 {[%clk 0:00:16.7]} 32. Rg5+ {[%clk 0:00:30.3]} 32... Kh6 {[%clk
0:00:16.4]} 33. Nxd2 {[%clk 0:00:31.2]} 33... Rxh3+ {[%clk 0:00:16.2]} 34. Kc2
{[%clk 0:00:28.9]} 34... b5 {[%clk 0:00:11]} 35. Re5 {[%clk 0:00:27.9]} 35...
Rh2 {[%clk 0:00:10.6]} 36. b4 {[%clk 0:00:26.1]} 36... Bc7 {[%clk 0:00:10.6]}
37. Re4 {[%clk 0:00:25.3]} 37... Kg6 {[%clk 0:00:10.3]} 38. Nxc7 {[%clk
0:00:25.3]} 38... Kf5 {[%clk 0:00:10.1]} 39. Re8 {[%clk 0:00:25.2]} 39... Rh7
{[%clk 0:00:09.1]} 40. Ne6 {[%clk 0:00:23.5]} 40... a5 {[%clk 0:00:06.5]} 41.
Nd4+ {[%clk 0:00:22.3]} 41... Kf6 {[%clk 0:00:06.7]} 42. Nxc6 {[%clk 0:00:23.1]}
42... Rc7 {[%clk 0:00:06.9]} 43. bxa5 {[%clk 0:00:20.5]} 43... Rxc6+ {[%clk
0:00:07.5]} 44. Kb3 {[%clk 0:00:21.4]} 44... Rd6 {[%clk 0:00:07.3]} 45. Nb1
{[%clk 0:00:20.9]} 45... Kf7 {[%clk 0:00:08.1]} 46. Rb8 {[%clk 0:00:19.8]} 46...
Rd3+ {[%clk 0:00:08]} 47. Nc3 {[%clk 0:00:20.1]} 47... Ke6 {[%clk 0:00:07.3]}
48. Rxb5 {[%clk 0:00:20.6]} 48... Kd6 {[%clk 0:00:07.4]} 49. a6 {[%clk
0:00:20.5]} 49... Kc6 {[%clk 0:00:07.3]} 50. Rb4 {[%clk 0:00:21.1]} 50... Rd8
{[%clk 0:00:07.6]} 51. a7 {[%clk 0:00:21.1]} 51... Ra8 {[%clk 0:00:07.5]} 52.
Ra4 {[%clk 0:00:21.5]} 52... Kb6 {[%clk 0:00:08]} 53. Kb4 {[%clk 0:00:21.6]}
53... Kb7 {[%clk 0:00:08.3]} 54. Kb5 {[%clk 0:00:21.6]} 54... Kc7 {[%clk
0:00:07.1]} 55. Ka6 {[%clk 0:00:21.9]} 55... Kc6 {[%clk 0:00:07.1]} 56. Rc4+
{[%clk 0:00:21.5]} 56... Kd7 {[%clk 0:00:07.3]} 57. Rh4 {[%clk 0:00:22.4]} 57...
Kc6 {[%clk 0:00:07]} 58. Rh6+ {[%clk 0:00:21.8]} 58... Kc7 {[%clk 0:00:07.3]}
59. Rh7+ {[%clk 0:00:22.7]} 59... Kc6 {[%clk 0:00:07.8]} 60. Nb5 {[%clk
0:00:22.9]} 60... Re8 {[%clk 0:00:06.7]} 61. a4 {[%clk 0:00:21.8]} 61... Rf8
{[%clk 0:00:06.2]} 62. Rc7+ {[%clk 0:00:21.7]} 62... Kd5 {[%clk 0:00:05.9]} 63.
Rc2 {[%clk 0:00:22.6]} 63... Rf6+ {[%clk 0:00:05.3]} 64. Ka5 {[%clk 0:00:22.9]}
64... Rf8 {[%clk 0:00:05.3]} 65. Nc7+ {[%clk 0:00:22.7]} 65... Kd6 {[%clk
0:00:05.3]} 66. a8=Q {[%clk 0:00:23.6]} 66... Rxa8+ {[%clk 0:00:05]} 67. Nxa8
{[%clk 0:00:24.1]} 67... Kd7 {[%clk 0:00:05.9]} 68. Nb6+ {[%clk 0:00:24.3]} 1-0

[Event "*** Titled Tuesday Blitz"]
[Site "Chess.com"]
[Date "2021.02.02"]
[Round "6"]
[White "MITerryble"]
[Black "rasmussvane"]
[Result "0-1"]
[WhiteElo "2923"]
[BlackElo "2883"]
[TimeControl "180+1"]
[EndTime "11:09:59 PST"]
[Termination "rasmussvane won on time"]

1. d4 {[%clk 0:02:50.1]} 1... d5 {[%clk 0:02:58.6]} 2. Nf3 {[%clk 0:02:50.2]}
2... e6 {[%clk 0:02:58.8]} 3. c4 {[%clk 0:02:50.3]} 3... a6 {[%clk 0:02:58.6]}
4. e3 {[%clk 0:02:50.3]} 4... Nf6 {[%clk 0:02:58.2]} 5. b3 {[%clk 0:02:50.3]}
5... b6 {[%clk 0:02:57.4]} 6. Bd3 {[%clk 0:02:50.2]} 6... Bb7 {[%clk 0:02:57.8]}
7. O-O {[%clk 0:02:50.2]} 7... Bd6 {[%clk 0:02:58.4]} 8. Bb2 {[%clk 0:02:50.3]}
8... O-O {[%clk 0:02:58.7]} 9. Nbd2 {[%clk 0:02:50.2]} 9... Nbd7 {[%clk
0:02:57.3]} 10. Qe2 {[%clk 0:02:44.5]} 10... Ne4 {[%clk 0:02:52.1]} 11. Rfd1
{[%clk 0:02:42]} 11... Qe7 {[%clk 0:02:51.3]} 12. Ne5 {[%clk 0:02:41]} 12...
Nxe5 {[%clk 0:02:24.6]} 13. dxe5 {[%clk 0:02:41]} 13... Ba3 {[%clk 0:02:25.2]}
14. Bxa3 {[%clk 0:02:13.1]} 14... Qxa3 {[%clk 0:02:26.1]} 15. Bxe4 {[%clk
0:01:44.8]} 15... dxe4 {[%clk 0:02:27]} 16. Nf1 {[%clk 0:01:45.1]} 16... Rad8
{[%clk 0:02:09.6]} 17. Rd4 {[%clk 0:01:38.3]} 17... Rxd4 {[%clk 0:01:05.3]} 18.
exd4 {[%clk 0:01:39.2]} 18... Rd8 {[%clk 0:01:05.9]} 19. Rd1 {[%clk 0:01:38.8]}
19... h6 {[%clk 0:00:44.5]} 20. Ne3 {[%clk 0:01:27.4]} 20... Qa5 {[%clk
0:00:33]} 21. Qc2 {[%clk 0:01:21.3]} 21... Qb4 {[%clk 0:00:28]} 22. h3 {[%clk
0:01:16.8]} 22... Qe7 {[%clk 0:00:28]} 23. Qc3 {[%clk 0:01:08]} 23... c6 {[%clk
0:00:17.7]} 24. Rd2 {[%clk 0:01:03.1]} 24... Rd7 {[%clk 0:00:10.8]} 25. b4
{[%clk 0:00:56.1]} 25... Qd8 {[%clk 0:00:05]} 26. c5 {[%clk 0:00:43.9]} 26... b5
{[%clk 0:00:05.5]} 27. Nc2 {[%clk 0:00:39.1]} 27... Qh4 {[%clk 0:00:05.4]} 28.
Qe3 {[%clk 0:00:37.2]} 28... f5 {[%clk 0:00:05.5]} 29. exf6 {[%clk 0:00:20.5]}
29... gxf6 {[%clk 0:00:06.4]} 30. g3 {[%clk 0:00:20.5]} 30... Qg5 {[%clk
0:00:06]} 31. h4 {[%clk 0:00:17.6]} 31... Qxe3 {[%clk 0:00:06]} 32. Nxe3 {[%clk
0:00:18.5]} 32... f5 {[%clk 0:00:06.3]} 33. Kf1 {[%clk 0:00:16.5]} 33... Kf7
{[%clk 0:00:06.8]} 34. Ke1 {[%clk 0:00:16.5]} 34... Kf6 {[%clk 0:00:06]} 35. Ng2
{[%clk 0:00:15.6]} 35... Bc8 {[%clk 0:00:06.1]} 36. Nf4 {[%clk 0:00:16]} 36...
a5 {[%clk 0:00:06.3]} 37. a3 {[%clk 0:00:15.5]} 37... Ra7 {[%clk 0:00:05.6]} 38.
Rb2 {[%clk 0:00:11.1]} 38... axb4 {[%clk 0:00:06]} 39. axb4 {[%clk 0:00:12]}
39... e5 {[%clk 0:00:06.3]} 40. dxe5+ {[%clk 0:00:11.1]} 40... Kxe5 {[%clk
0:00:07.2]} 41. Kd2 {[%clk 0:00:11.1]} 41... Ra3 {[%clk 0:00:05.5]} 42. Ng6+
{[%clk 0:00:09.2]} 42... Kd4 {[%clk 0:00:05.5]} 43. Nf4 {[%clk 0:00:08.1]} 43...
Bd7 {[%clk 0:00:04.4]} 44. Ne2+ {[%clk 0:00:04.8]} 44... Ke5 {[%clk 0:00:04.5]}
45. Nf4 {[%clk 0:00:04.8]} 45... Be6 {[%clk 0:00:05]} 46. Ke1 {[%clk 0:00:04.6]}
46... Bc4 {[%clk 0:00:05.5]} 47. Kd2 {[%clk 0:00:04.8]} 47... Kd4 {[%clk
0:00:05.4]} 48. Kc2 {[%clk 0:00:04.6]} 48... Rc3+ {[%clk 0:00:05.6]} 49. Kd2
{[%clk 0:00:04.8]} 49... e3+ {[%clk 0:00:06.2]} 50. fxe3+ {[%clk 0:00:05.7]}
50... Rxe3 {[%clk 0:00:07.1]} 51. Nh5 {[%clk 0:00:06]} 51... Re2+ {[%clk
0:00:06]} 52. Kc1 {[%clk 0:00:06.4]} 52... Re1+ {[%clk 0:00:06.6]} 53. Kd2
{[%clk 0:00:06.5]} 53... Re3 {[%clk 0:00:07.2]} 54. Kc1 {[%clk 0:00:05.8]} 54...
Rf3 {[%clk 0:00:07.1]} 55. Rd2+ {[%clk 0:00:05.2]} 55... Kc3 {[%clk 0:00:07.6]}
56. Rc2+ {[%clk 0:00:05.6]} 56... Kxb4 {[%clk 0:00:08.1]} 57. Kb2 {[%clk
0:00:04.9]} 57... Kxc5 {[%clk 0:00:07.6]} 58. Rd2 {[%clk 0:00:05.5]} 58... Kb4
{[%clk 0:00:07.6]} 59. Ng7 {[%clk 0:00:05.1]} 59... c5 {[%clk 0:00:07.6]} 60.
Rd6 {[%clk 0:00:03.9]} 60... Rxg3 {[%clk 0:00:07.3]} 61. Nxf5 {[%clk 0:00:03.5]}
61... Rg2+ {[%clk 0:00:07.8]} 62. Kc1 {[%clk 0:00:03.9]} 62... Kc3 {[%clk
0:00:08.2]} 63. Nxh6 {[%clk 0:00:04.1]} 63... Bb3 {[%clk 0:00:07.6]} 0-1

[Event "*** Titled Tuesday Blitz"]
[Site "Chess.com"]
[Date "2021.02.02"]
[Round "6"]
[White "Sofiia_Hryzlova"]
[Black "NiranjanNavalgund"]
[Result "0-1"]
[WhiteElo "2254"]
[BlackElo "2528"]
[TimeControl "180+1"]
[EndTime "11:09:59 PST"]
[Termination "NiranjanNavalgund won by resignation"]

1. c4 {[%clk 0:03:00.9]} 1... e5 {[%clk 0:02:59.3]} 2. g3 {[%clk 0:03:00.4]}
2... h5 {[%clk 0:02:57.3]} 3. Nc3 {[%clk 0:02:50.4]} 3... h4 {[%clk 0:02:57]} 4.
Bg2 {[%clk 0:02:50.2]} 4... d6 {[%clk 0:02:55.9]} 5. gxh4 {[%clk 0:02:48.7]}
5... Qxh4 {[%clk 0:02:54.3]} 6. Nf3 {[%clk 0:02:47.4]} 6... Qxc4 {[%clk
0:02:53.1]} 7. b3 {[%clk 0:02:45]} 7... Qe6 {[%clk 0:02:52.7]} 8. h4 {[%clk
0:02:28]} 8... Be7 {[%clk 0:02:51.8]} 9. d4 {[%clk 0:02:10.6]} 9... exd4 {[%clk
0:02:49.1]} 10. Bh3 {[%clk 0:02:03.7]} 10... f5 {[%clk 0:02:46]} 11. Nxd4 {[%clk
0:02:02.4]} 11... Qf7 {[%clk 0:02:45.4]} 12. Ncb5 {[%clk 0:01:53.6]} 12... Na6
{[%clk 0:02:40.9]} 13. Qc2 {[%clk 0:01:52.9]} 13... Rxh4 {[%clk 0:02:36.7]} 14.
Bb2 {[%clk 0:01:24.4]} 14... Bf6 {[%clk 0:02:20]} 15. O-O-O {[%clk 0:01:18.5]}
15... Bd7 {[%clk 0:02:06]} 16. Kb1 {[%clk 0:01:03.7]} 16... Bxb5 {[%clk
0:01:29.6]} 17. Nxb5 {[%clk 0:01:02.7]} 17... Bxb2 {[%clk 0:01:29.3]} 18. Kxb2
{[%clk 0:00:58.9]} 18... Qf6+ {[%clk 0:01:17.7]} 19. Kb1 {[%clk 0:00:57.3]}
19... O-O-O {[%clk 0:01:13.5]} 20. Bxf5+ {[%clk 0:00:54.5]} 20... Kb8 {[%clk
0:01:12]} 21. Rxh4 {[%clk 0:00:53.3]} 21... Qxh4 {[%clk 0:01:12.9]} 22. Rc1
{[%clk 0:00:52.5]} 22... c6 {[%clk 0:01:08.1]} 23. e4 {[%clk 0:00:44.5]} 23...
Ne7 {[%clk 0:01:00.1]} 24. Nd4 {[%clk 0:00:43]} 24... Qf6 {[%clk 0:00:47.4]} 25.
Qc4 {[%clk 0:00:35.5]} 25... d5 {[%clk 0:00:32.9]} 26. exd5 {[%clk 0:00:14.7]}
26... Rxd5 {[%clk 0:00:26.7]} 27. Nxc6+ {[%clk 0:00:08.7]} 27... bxc6 {[%clk
0:00:26]} 28. Qxa6 {[%clk 0:00:08.5]} 28... Qxf5+ {[%clk 0:00:26]} 29. Kb2
{[%clk 0:00:08.8]} 29... Qe5+ {[%clk 0:00:26.4]} 30. Kb1 {[%clk 0:00:08.7]}
30... Qe4+ {[%clk 0:00:26.5]} 31. Ka1 {[%clk 0:00:07.7]} 31... Qd4+ {[%clk
0:00:20.7]} 32. Kb1 {[%clk 0:00:07.1]} 32... Qd3+ {[%clk 0:00:20.9]} 33. Qxd3
{[%clk 0:00:06.6]} 33... Rxd3 {[%clk 0:00:21.8]} 34. Re1 {[%clk 0:00:07.4]}
34... Nd5 {[%clk 0:00:20.7]} 35. Re8+ {[%clk 0:00:07.8]} 35... Kb7 {[%clk
0:00:20.6]} 36. Rg8 {[%clk 0:00:08.4]} 36... Rd1+ {[%clk 0:00:20.4]} 37. Kc2
{[%clk 0:00:07.9]} 37... Rg1 {[%clk 0:00:21.3]} 38. Kd3 {[%clk 0:00:05.5]} 38...
Rg2 {[%clk 0:00:20.7]} 39. Ke2 {[%clk 0:00:04.2]} 39... a5 {[%clk 0:00:18.7]}
40. Kf3 {[%clk 0:00:04.4]} 40... Rg6 {[%clk 0:00:18.7]} 41. Rf8 {[%clk
0:00:04.5]} 41... Rf6+ {[%clk 0:00:18.7]} 42. Rxf6 {[%clk 0:00:04.5]} 42... gxf6
{[%clk 0:00:17.2]} 43. Ke4 {[%clk 0:00:04.9]} 43... Kc7 {[%clk 0:00:17.6]} 44.
Kf5 {[%clk 0:00:05.1]} 44... Kd6 {[%clk 0:00:18.1]} 45. a3 {[%clk 0:00:05.3]}
45... Kc5 {[%clk 0:00:18.3]} 46. f4 {[%clk 0:00:04.1]} 46... Kd4 {[%clk
0:00:18.5]} 47. Ke6 {[%clk 0:00:04.4]} 47... c5 {[%clk 0:00:16]} 48. f5 {[%clk
0:00:04.6]} 48... c4 {[%clk 0:00:16.3]} 49. bxc4 {[%clk 0:00:04.3]} 49... Kxc4
{[%clk 0:00:17.1]} 50. Kd6 {[%clk 0:00:04.6]} 50... a4 {[%clk 0:00:17.2]} 51.
Ke6 {[%clk 0:00:04.8]} 51... Kd4 {[%clk 0:00:17.4]} 52. Kd6 {[%clk 0:00:05]}
52... Ke4 {[%clk 0:00:17.7]} 53. Ke6 {[%clk 0:00:05.3]} 53... Kd4 {[%clk
0:00:18]} 54. Kd6 {[%clk 0:00:05.5]} 54... Kc4 {[%clk 0:00:18.5]} 55. Ke6 {[%clk
0:00:05.9]} 55... Kc5 {[%clk 0:00:18.8]} 56. Kf7 {[%clk 0:00:05.1]} 56... Kd6
{[%clk 0:00:19.2]} 57. Kg6 {[%clk 0:00:05.3]} 57... Ke5 {[%clk 0:00:19.6]} 58.
Kf7 {[%clk 0:00:05.9]} 58... Kxf5 {[%clk 0:00:20.1]} 59. Ke8 {[%clk 0:00:06.4]}
59... Ke5 {[%clk 0:00:21]} 60. Kd7 {[%clk 0:00:07.3]} 60... Ne3 {[%clk
0:00:21.2]} 61. Kc6 {[%clk 0:00:08.2]} 61... Nc2 {[%clk 0:00:20.6]} 62. Kb5
{[%clk 0:00:09.1]} 62... Nxa3+ {[%clk 0:00:20.7]} 63. Kxa4 {[%clk 0:00:09.1]}
63... Nc4 {[%clk 0:00:20.8]} 0-1